bitfinex/quotes_BTCUSD_20251212
["timestamp","ask_amount","ask_price","bid_price","bid_amount"]
[1765504260015,0.01912,92183.0,92182.0,0.01838102]
[1765504260270,0.01912,92183.0,92182.0,0.04207102]
[1765504260467,0.002,92183.0,92182.0,0.04207102]
[1765504260676,0.002,92183.0,92182.0,0.06376722]
[1765504261152,0.002,92183.0,92182.0,0.10243072]
[1765504261395,0.01015845,92212.0,92211.0,0.21689386]
[1765504261596,0.02796386,92218.0,92215.0,0.01084422]
[1765504261849,0.01084434,92214.0,92208.0,0.57099852]
[1765504262048,0.01084457,92212.0,92207.0,0.01084516]
[1765504262225,0.01084457,92212.0,92205.0,0.01084539]
[1765504262226,0.04455149,92206.0,92205.0,0.01084539]
[1765504262460,0.06167149,92206.0,92205.0,0.01084539]
[1765504262669,0.06167149,92206.0,92205.0,0.01096192]
[1765504263457,0.06167149,92206.0,92205.0,0.00011653]
[1765504263819,0.06267149,92206.0,92205.0,0.00611653]
[1765504264504,0.06367149,92206.0,92205.0,0.00911653]
[1765504264698,0.01912,92206.0,92205.0,0.00911653]
[1765504264943,0.01912,92206.0,92205.0,0.04825653]
[1765504266980,0.01912,92206.0,92205.0,0.02456653]
[1765504267318,0.06874835,92206.0,92205.0,0.00911653]
[1765504267436,0.01912,92206.0,92205.0,0.00911653]
[1765504268304,0.01912,92206.0,92205.0,0.04825653]
[1765504268843,0.002,92206.0,92205.0,0.04825653]
[1765504269056,0.002,92206.0,92205.0,0.0498694]
[1765504270455,0.001,92206.0,92205.0,0.0468694]
[1765504270639,0.002,92206.0,92205.0,0.0518694]
[1765504271811,0.001,92206.0,92205.0,0.0458694]
[1765504272036,0.002,92206.0,92205.0,0.0518694]
[1765504272715,0.002,92206.0,92205.0,0.07356019]
[1765504276966,0.002,92206.0,92205.0,0.0518294]
[1765504278097,0.01836804,92206.0,92205.0,0.0127294]
[1765504278300,0.01200089,92206.0,92205.0,0.0127294]
[1765504278507,0.01200089,92206.0,92205.0,0.01111653]
[1765504278721,0.22890651,92206.0,92205.0,0.01111653]
[1765504278898,0.22890651,92206.0,92205.0,0.03915653]
[1765504279099,0.22890651,92206.0,92205.0,0.01111653]
[1765504283014,0.31662692,92206.0,92205.0,0.00211653]
[1765504283422,0.31062692,92206.0,92205.0,0.00111653]
[1765504283596,0.31762692,92206.0,92205.0,0.00211653]
[1765504284477,0.30762692,92206.0,92205.0,0.00111653]
[1765504284735,0.31862692,92206.0,92205.0,0.00211653]
[1765504285568,0.60932692,92206.0,92205.0,0.00211653]
[1765504285741,0.61947375,92206.0,92205.0,0.00211653]
[1765504286959,0.54575334,92206.0,92205.0,0.00211653]
[1765504288842,0.5566012,92206.0,92205.0,0.00211653]
[1765504290432,0.5737212,92206.0,92205.0,0.00211653]
[1765504290620,0.5566012,92206.0,92205.0,0.00211653]
[1765504290813,0.5737212,92206.0,92205.0,0.00211653]
[1765504291195,0.68422882,92206.0,92205.0,0.00211653]
[1765504291815,0.5737212,92206.0,92205.0,0.00211653]
[1765504294726,0.2830212,92206.0,92205.0,0.00211653]
[1765504294925,0.26202651,92206.0,92205.0,0.00211653]
[1765504296135,0.25202562,92206.0,92205.0,0.00211653]
[1765504298560,0.29657711,92206.0,92205.0,0.00211653]
[1765504299372,0.39875208,92206.0,92205.0,0.00211653]
[1765504302189,0.69959605,92206.0,92205.0,0.00211653]
[1765504302392,0.56287048,92206.0,92205.0,0.00211653]
[1765504302605,0.57371811,92206.0,92205.0,0.00211653]
[1765504303608,0.28301811,92206.0,92205.0,0.00211653]
[1765504303760,0.26202651,92206.0,92205.0,0.00211653]
[1765504304612,0.27217484,92206.0,92205.0,0.00211653]
[1765504304830,0.03814922,92206.0,92205.0,0.23313192]
[1765504305048,0.018,92206.0,92205.0,0.25375189]
[1765504305593,0.011,92206.0,92205.0,0.25375189]
[1765504305797,0.011,92206.0,92205.0,0.54445189]
[1765504306004,0.016,92206.0,92205.0,0.54445189]
[1765504306418,0.01712,92229.0,92228.0,0.21685388]
[1765504306622,0.01712,92229.0,92228.0,0.25531388]
[1765504307066,0.01712,92229.0,92228.0,0.25692675]
[1765504307275,0.01014723,92238.0,92237.0,0.21683272]
[1765504307444,0.01712,92238.0,92237.0,0.21844559]
[1765504307648,0.01712,92238.0,92237.0,0.25690559]
[1765504308472,0.01720441,92238.0,92237.0,0.25690559]
[1765504309560,0.02320441,92238.0,92237.0,0.25790559]
[1765504309749,0.03120441,92238.0,92237.0,0.25790559]
[1765504311602,0.03120441,92238.0,92237.0,0.001]
[1765504312480,0.03120441,92238.0,92237.0,0.01626]
[1765504312877,0.03120441,92238.0,92237.0,0.001]
[1765504314034,0.03120441,92238.0,92237.0,0.03946]
[1765504315352,0.03120441,92238.0,92237.0,0.01626]
[1765504315555,0.03120441,92238.0,92237.0,0.001]
[1765504315872,0.10707893,92238.0,92237.0,0.001]
[1765504318008,0.10707893,92238.0,92237.0,0.03946]
[1765504318009,0.03120441,92238.0,92237.0,0.03946]
[1765504320603,0.03120441,92238.0,92237.0,0.01626]
[1765504320778,0.03120441,92238.0,92237.0,0.001]
[1765504321728,0.03120441,92238.0,92237.0,0.03946]
[1765504322273,0.03120441,92238.0,92237.0,0.01626]
[1765504322567,0.10816307,92238.0,92237.0,0.001]
[1765504326172,0.10816307,92238.0,92237.0,0.21783272]
[1765504326367,0.03120441,92238.0,92237.0,0.25629272]
[1765504326588,0.01408441,92238.0,92237.0,0.25790559]
[1765504327147,0.01408441,92238.0,92237.0,0.001]
[1765504328035,0.00808441,92238.0,92237.0,0.001]
[1765504328465,0.00108441,92238.0,92237.0,0.002]
[1765504328926,0.00108441,92238.0,92237.0,0.006]
[1765504329159,0.01000089,92222.0,92220.0,0.55877185]
[1765504329369,0.04455149,92218.0,92217.0,0.22772317]
[1765504329583,0.09626068,92218.0,92217.0,0.22772317]
[1765504329799,0.02712089,92221.0,92220.0,0.21687269]
[1765504329977,0.01712,92221.0,92220.0,0.21848556]
[1765504331915,0.01812,92221.0,92220.0,0.24174556]
[1765504332332,0.01812,92221.0,92220.0,0.26494556]
[1765504332496,0.01912,92221.0,92220.0,0.26694556]
[1765504335253,0.01912,92221.0,92220.0,0.01161287]
[1765504335594,0.01912,92221.0,92220.0,0.01]
[1765504336969,0.06367149,92221.0,92220.0,0.01]
[1765504338312,0.06367149,92221.0,92211.0,0.55868263]
[1765504338313,0.04455149,92212.0,92211.0,0.55868263]
[1765504338623,0.04455149,92208.0,92207.0,0.01084516]
[1765504338819,0.04455149,92207.0,92206.0,0.01084528]
[1765504339064,0.02482851,92208.0,92204.0,0.01084551]
[1765504339065,0.03567355,92208.0,92204.0,0.01084551]
[1765504339275,0.04455149,92203.0,92198.0,0.59737786]
[1765504339489,0.04455149,92203.0,92199.0,0.03791798]
[1765504339710,0.02894271,92202.0,92199.0,0.03791798]
[1765504339976,0.01000089,92195.0,92194.0,0.03869523]
[1765504340190,0.21693856,92192.0,92190.0,0.55868263]
[1765504340429,0.04455149,92193.0,92192.0,0.21693856]
[1765504340635,0.01712,92195.0,92192.0,0.30741302]
[1765504341021,0.01712,92195.0,92192.0,0.26884835]
[1765504341777,0.001,92193.0,92192.0,0.27184835]
[1765504342319,0.001,92193.0,92192.0,0.24753835]
[1765504342538,0.001,92193.0,92192.0,0.25653835]
[1765504342743,0.01712,92195.0,92192.0,0.26884835]
[1765504342955,0.01712,92195.0,92194.0,0.21693385]
[1765504343111,0.01712,92195.0,92194.0,0.21854672]
[1765504343314,0.01712,92195.0,92194.0,0.23368672]
[1765504343514,0.01712,92195.0,92194.0,0.25799672]
[1765504343727,0.01712,92195.0,92194.0,0.21854672]
[1765504344232,0.01812,92195.0,92194.0,0.21854672]
[1765504344618,0.01712,92195.0,92194.0,0.21854672]
[1765504344817,0.01812,92195.0,92194.0,0.22754672]
[1765504345001,0.01912,92195.0,92194.0,0.01361287]
[1765504346119,0.11884585,92195.0,92194.0,0.01361287]
[1765504346324,0.11884585,92195.0,92194.0,0.012]
[1765504347167,0.11784585,92195.0,92194.0,0.009]
[1765504347522,0.11784585,92195.0,92194.0,0.002]
[1765504347724,0.06267149,92195.0,92194.0,0.002]
[1765504347960,0.06267149,92195.0,92194.0,0.007]
[1765504348360,0.06367149,92195.0,92194.0,0.009]
[1765504350092,0.01912,92195.0,92194.0,0.009]
[1765504350296,0.02912089,92195.0,92194.0,0.009]
[1765504352547,0.02912089,92195.0,92194.0,0.01061287]
[1765504353857,0.05806322,92195.0,92194.0,0.01061287]
[1765504356918,0.05806322,92195.0,92194.0,0.009]
[1765504358206,0.02912089,92195.0,92194.0,0.009]
[1765504359198,0.01912,92195.0,92194.0,0.009]
[1765504359396,0.01912,92195.0,92194.0,0.01061287]
[1765504360807,0.06367149,92195.0,92194.0,0.01061287]
[1765504362301,0.01912,92195.0,92194.0,0.01061287]
[1765504363029,0.06367149,92195.0,92194.0,0.01061287]
[1765504363207,0.01912,92195.0,92194.0,0.05006287]
[1765504363608,0.01912,92195.0,92194.0,0.02575287]
[1765504364739,0.01912,92195.0,92194.0,0.01061287]
[1765504371112,0.06367149,92195.0,92194.0,0.01061287]
[1765504372073,0.06367149,92195.0,92194.0,0.22754672]
[1765504372679,0.01912,92195.0,92194.0,0.22754672]
[1765504377805,0.06367149,92195.0,92194.0,0.22754672]
[1765504378623,0.01912,92195.0,92194.0,0.22754672]
[1765504380516,0.01912,92195.0,92194.0,0.26582672]
[1765504382041,0.002,92195.0,92194.0,0.26582672]
[1765504382675,0.001,92195.0,92194.0,0.25882672]
[1765504383096,0.002,92195.0,92194.0,0.26882672]
[1765504383301,0.001,92195.0,92194.0,0.26682672]
[1765504383498,0.001,92195.0,92194.0,0.26982672]
[1765504383847,0.002,92195.0,92194.0,0.26982672]
[1765504385743,0.002,92195.0,92194.0,0.23154672]
[1765504386431,0.04655149,92195.0,92194.0,0.23154672]
[1765504390509,0.05229123,92195.0,92194.0,0.23154672]
[1765504393030,0.04655149,92195.0,92194.0,0.23154672]
[1765504397268,0.04655149,92195.0,92194.0,0.01461287]
[1765504397473,0.04655149,92195.0,92194.0,0.23154672]
[1765504397756,0.04655149,92195.0,92194.0,0.01461287]
[1765504405980,0.04655149,92195.0,92194.0,0.013]
[1765504406611,0.29687966,92195.0,92194.0,0.013]
[1765504407175,0.26348299,92195.0,92194.0,0.013]
[1765504408260,0.04655149,92195.0,92194.0,0.013]
[1765504408443,0.22777348,92197.0,92193.0,0.01084681]
[1765504408643,0.04455149,92194.0,92193.0,0.01084681]
[1765504410236,0.04555149,92194.0,92193.0,0.01584681]
[1765504410756,0.04555149,92194.0,92193.0,0.01984681]
[1765504410968,0.074068,92194.0,92193.0,0.01984681]
[1765504411172,0.074068,92194.0,92193.0,0.01584681]
[1765504411511,0.075068,92194.0,92193.0,0.01984681]
[1765504413468,0.075068,92194.0,92193.0,0.009]
[1765504414740,0.29200185,92194.0,92193.0,0.009]
[1765504415072,0.26348534,92194.0,92193.0,0.009]
[1765504416453,0.06367149,92194.0,92193.0,0.009]
[1765504419896,0.01912,92194.0,92193.0,0.009]
[1765504426825,0.06367149,92194.0,92193.0,0.009]
[1765504431411,0.28060534,92194.0,92193.0,0.009]
[1765504432666,0.06367149,92194.0,92193.0,0.04812]
[1765504432883,0.01912,92194.0,92193.0,0.04812]
[1765504433546,0.01912,92194.0,92193.0,0.04973287]
[1765504434820,0.01912,92194.0,92193.0,0.26666907]
[1765504435023,0.01912,92194.0,92193.0,0.04973287]
[1765504436933,0.04613045,92194.0,92193.0,0.01061287]
[1765504438302,0.02912089,92194.0,92193.0,0.01061287]
[1765504442594,0.01912,92194.0,92193.0,0.04973287]
[1765504443751,0.01912,92194.0,92193.0,0.01061287]
[1765504444336,0.01912,92194.0,92193.0,0.07142649]
[1765504445335,0.01912,92194.0,92193.0,0.04973287]
[1765504445542,0.01912,92194.0,92193.0,0.02691287]
[1765504445765,0.01912,92194.0,92193.0,0.01061287]
[1765504448178,0.01912,92194.0,92193.0,0.03343287]
[1765504448384,0.01912,92194.0,92193.0,0.04973287]
[1765504448805,0.002,92194.0,92193.0,0.1004214]
[1765504449121,0.002,92194.0,92193.0,0.07142649]
[1765504449824,0.001,92194.0,92193.0,0.06742649]
[1765504450214,0.002,92194.0,92193.0,0.07342649]
[1765504450839,0.001,92194.0,92193.0,0.06842649]
[1765504451041,0.002,92194.0,92193.0,0.07542649]
[1765504452769,0.002,92194.0,92193.0,0.11399116]
[1765504452974,0.002,92194.0,92193.0,0.07542649]
[1765504454955,0.002,92194.0,92193.0,0.06941228]
[1765504459390,0.002,92194.0,92193.0,0.09773705]
[1765504459590,0.002,92194.0,92193.0,0.14086503]
[1765504459764,0.002,92194.0,92193.0,0.15798503]
[1765504459911,0.002,92194.0,92193.0,0.21585456]
[1765504461194,0.001,92194.0,92193.0,0.20985456]
[1765504461396,8.436e-05,92203.0,92200.0,0.01084598]
[1765504461600,8.436e-05,92203.0,92202.0,0.01619]
[1765504462109,8.436e-05,92203.0,92202.0,0.07830798]
[1765504462611,0.00108436,92203.0,92202.0,0.07830798]
[1765504463053,8.436e-05,92203.0,92202.0,0.11087]
[1765504463394,8.436e-05,92203.0,92202.0,0.11487]
[1765504463600,8.436e-05,92203.0,92202.0,0.1365615]
[1765504465537,0.00108436,92203.0,92202.0,0.1405615]
[1765504467211,0.00108436,92203.0,92202.0,0.10799948]
[1765504468110,0.00108436,92203.0,92202.0,0.008]
[1765504468312,0.04563585,92203.0,92202.0,0.008]
[1765504470848,0.00108436,92203.0,92202.0,0.008]
[1765504471601,0.01605812,92203.0,92202.0,0.008]
[1765504472567,0.01605812,92203.0,92202.0,0.004]
[1765504472770,0.04455149,92197.0,92196.0,0.01084645]
[1765504474032,0.04455149,92197.0,92196.0,0.01284645]
[1765504474860,0.04555149,92197.0,92196.0,0.01584645]
[1765504478532,0.001,92197.0,92196.0,0.05623645]
[1765504479357,0.01812,92197.0,92196.0,0.07792936]
[1765504479520,0.01812,92197.0,92196.0,0.05623645]
[1765504479869,0.01812,92197.0,92196.0,0.08519042]
[1765504482368,0.01812,92197.0,92196.0,0.05623645]
[1765504485750,0.01812,92197.0,92196.0,0.0852422]
[1765504486362,0.01812,92197.0,92196.0,0.05623645]
[1765504488057,0.001,92197.0,92196.0,0.05623645]
[1765504489656,8.436e-05,92203.0,92200.0,0.01084598]
[1765504489871,8.436e-05,92203.0,92202.0,0.01568]
[1765504490325,8.436e-05,92203.0,92202.0,0.05625]
[1765504490554,8.436e-05,92203.0,92202.0,0.0779415]
[1765504490831,0.00108436,92203.0,92202.0,0.0779415]
[1765504491354,8.436e-05,92203.0,92202.0,0.0779415]
[1765504491635,0.00108436,92203.0,92202.0,0.0809415]
[1765504492012,0.00108436,92203.0,92202.0,0.0839415]
[1765504493635,0.00108436,92203.0,92202.0,0.11294089]
[1765504496260,0.00108436,92203.0,92202.0,0.0839415]
[1765504501441,0.00108436,92203.0,92202.0,0.06225]
[1765504501663,0.00108436,92203.0,92202.0,0.006]
[1765504502108,0.00108436,92203.0,92202.0,0.04513]
[1765504502741,0.00108436,92203.0,92202.0,0.0668215]
[1765504503917,0.00108436,92203.0,92202.0,0.10549623]
[1765504505006,0.00108436,92203.0,92202.0,0.0668215]
[1765504505688,0.00108436,92203.0,92202.0,0.04513]
[1765504505909,0.00108436,92203.0,92202.0,0.006]
[1765504506533,0.00108436,92203.0,92202.0,0.04513]
[1765504508274,0.00108436,92203.0,92202.0,0.0668215]
[1765504510258,0.00108436,92203.0,92202.0,0.04513]
[1765504511404,0.00108436,92203.0,92202.0,0.10549623]
[1765504511838,0.00108436,92203.0,92202.0,0.0668215]
[1765504512506,0.00108436,92203.0,92202.0,0.09938183]
[1765504523340,0.00108436,92203.0,92202.0,0.07769033]
[1765504523542,0.00108436,92203.0,92202.0,0.09938183]
[1765504523863,0.00108436,92203.0,92202.0,0.10551887]
[1765504526439,0.00108436,92203.0,92202.0,0.11636332]
[1765504530134,0.00108436,92203.0,92202.0,0.07766595]
[1765504532946,0.00108436,92203.0,92202.0,0.13553548]
[1765504533554,0.00108436,92203.0,92202.0,0.11384398]
[1765504533783,0.00108436,92203.0,92202.0,0.13553548]
[1765504535535,0.01084351,92221.0,92218.0,0.01084386]
[1765504535734,0.01245638,92221.0,92218.0,0.01084386]
[1765504535974,0.01084363,92220.0,92217.0,0.01084398]
[1765504536143,0.0124565,92220.0,92217.0,0.01084398]
[1765504536761,0.0124565,92220.0,92218.0,0.001]
[1765504536960,0.25643859,92220.0,92218.0,0.001]
[1765504537164,0.0108441,92216.0,92212.0,0.03791798]
[1765504537478,0.01084422,92215.0,92212.0,0.04876255]
[1765504537895,0.00168,92213.0,92209.0,0.02903412]
[1765504538102,0.21857621,92210.0,92208.0,0.02903412]
[1765504538303,0.22774843,92207.0,92205.0,0.02903412]
[1765504538509,0.22774595,92208.0,92205.0,0.02903412]
[1765504539349,0.01084504,92208.0,92205.0,0.03987951]
[1765504539766,0.22774622,92208.0,92205.0,0.02903412]
[1765504539973,0.07253254,92207.0,92205.0,0.02903412]
[1765504540378,0.07253254,92207.0,92206.0,0.02903412]
[1765504541002,0.07253254,92207.0,92205.0,0.02903412]
[1765504541203,0.07253254,92207.0,92205.0,0.03103412]
[1765504541418,0.07453254,92207.0,92205.0,0.03103412]
[1765504541615,0.002,92207.0,92205.0,0.24594209]
[1765504541970,0.002,92207.0,92206.0,0.06352056]
[1765504542900,0.01712,92212.0,92209.0,0.01084492]
[1765504543104,0.01712,92212.0,92211.0,0.01633]
[1765504543441,0.01712,92212.0,92211.0,0.03983]
[1765504544076,0.01712,92212.0,92211.0,0.06886408]
[1765504544280,0.01912,92212.0,92211.0,0.09255346]
[1765504544481,0.01912,92212.0,92211.0,0.07086408]
[1765504545889,0.01912,92212.0,92211.0,0.10878206]
[1765504549292,0.01912,92212.0,92211.0,0.07974798]
[1765504550816,0.01912,92212.0,92211.0,0.10878206]
[1765504554665,0.01912,92212.0,92211.0,0.12080206]
[1765504555788,0.01912,92212.0,92211.0,0.09176798]
[1765504556990,0.002,92212.0,92211.0,0.12080206]
[1765504557127,0.002,92212.0,92211.0,0.09176798]
[1765504557552,0.002,92212.0,92211.0,0.11345736]
[1765504557762,0.002,92212.0,92211.0,0.14601539]
[1765504557973,0.002,92212.0,92211.0,0.18472755]
[1765504558173,0.002,92212.0,92211.0,0.14601539]
[1765504558633,0.01712,92220.0,92217.0,0.01084398]
[1765504558832,0.01712,92220.0,92219.0,0.02804]
[1765504559046,0.01712,92220.0,92219.0,0.05075]
[1765504559793,0.01812,92220.0,92219.0,0.05075]
[1765504560637,0.01812,92220.0,92219.0,0.05375]
[1765504562310,0.01812,92220.0,92219.0,0.01502]
[1765504562517,0.01812,92220.0,92219.0,0.05375]
[1765504582299,0.01812,92220.0,92219.0,0.01502]
[1765504583606,0.01812,92220.0,92219.0,0.03139]
[1765504583809,0.01812,92220.0,92219.0,0.0542]
[1765504585668,0.01084269,92228.0,92225.0,0.01084304]
[1765504586046,0.01245556,92228.0,92225.0,0.01084304]
[1765504586948,0.01245556,92228.0,92225.0,0.01284304]
[1765504587597,0.01445556,92228.0,92225.0,0.002]
[1765504589225,0.00361287,92228.0,92226.0,0.03791798]
[1765504590560,0.00161287,92228.0,92227.0,0.21685623]
[1765504590834,0.00361287,92228.0,92227.0,0.21685623]
[1765504591155,0.00361287,92228.0,92227.0,0.25603623]
[1765504591516,0.00161287,92228.0,92227.0,0.25603623]
[1765504591972,0.00361287,92228.0,92227.0,0.25603623]
[1765504592410,0.002,92228.0,92227.0,0.25603623]
[1765504592614,0.002,92228.0,92227.0,0.25703623]
[1765504592773,0.002,92228.0,92227.0,0.27415623]
[1765504592949,0.002,92228.0,92227.0,0.56485623]
[1765504593474,0.002,92228.0,92227.0,0.56385623]
[1765504593682,0.01712,92245.0,92244.0,0.21681626]
[1765504594043,0.01712,92245.0,92244.0,0.23962626]
[1765504595098,0.02012,92245.0,92244.0,0.23962626]
[1765504595476,0.02012,92245.0,92244.0,0.25599626]
[1765504600417,0.003,92245.0,92244.0,0.25599626]
[1765504601277,0.01712,92254.0,92253.0,0.21679511]
[1765504602156,0.01712,92254.0,92253.0,0.23960511]
[1765504602377,0.01712,92254.0,92253.0,0.21679511]
[1765504602568,0.01712,92254.0,92253.0,0.21779511]
[1765504602989,0.01712,92254.0,92253.0,0.001]
[1765504603539,0.01912,92254.0,92253.0,0.001]
[1765504603999,0.01912,92254.0,92253.0,0.02381]
[1765504604599,0.002,92254.0,92253.0,0.02381]
[1765504605635,0.002,92254.0,92253.0,0.04018]
[1765504607878,0.002,92254.0,92253.0,0.25697511]
[1765504608695,0.002,92254.0,92253.0,0.23416511]
[1765504610052,0.04984342,92254.0,92253.0,0.001]
[1765504610251,0.30102609,92254.0,92253.0,0.001]
[1765504610449,0.29934609,92254.0,92253.0,0.001]
[1765504610864,0.08255333,92254.0,92253.0,0.001]
[1765504611008,0.03800278,92254.0,92253.0,0.001]
[1765504611209,0.08255333,92254.0,92253.0,0.001]
[1765504611428,0.04984342,92254.0,92253.0,0.001]
[1765504612591,0.04816342,92254.0,92253.0,0.001]
[1765504614155,0.04816342,92254.0,92253.0,0.04062]
[1765504614156,0.00361287,92254.0,92253.0,0.04062]
[1765504614376,0.02073287,92254.0,92253.0,0.04062]
[1765504615216,0.02073287,92254.0,92253.0,0.001]
[1765504615377,0.0476518,92254.0,92253.0,0.001]
[1765504615586,0.02073287,92254.0,92253.0,0.001]
[1765504616588,0.02073287,92254.0,92253.0,0.04062]
[1765504619916,0.002,92254.0,92253.0,0.04062]
[1765504620116,0.01912,92254.0,92253.0,0.04062]
[1765504620521,0.06535055,92254.0,92253.0,0.001]
[1765504620749,0.06367055,92254.0,92253.0,0.001]
[1765504622480,0.01912,92254.0,92253.0,0.001]
[1765504623207,0.01912,92254.0,92253.0,0.04062]
[1765504623833,0.01912,92254.0,92253.0,0.01702]
[1765504624042,0.01912,92254.0,92253.0,0.001]
[1765504624242,0.01912,92254.0,92253.0,0.0246]
[1765504624916,0.01912,92254.0,92253.0,0.04062]
[1765504626201,0.06367055,92254.0,92253.0,0.04062]
[1765504627315,0.01912,92254.0,92253.0,0.01702]
[1765504628477,0.01912,92254.0,92253.0,0.04062]
[1765504629466,0.06367055,92254.0,92253.0,0.04062]
[1765504629742,0.01912,92254.0,92253.0,0.04062]
[1765504631725,0.002,92254.0,92253.0,0.04062]
[1765504632601,0.002,92254.0,92253.0,0.06229951]
[1765504632965,0.002,92254.0,92253.0,0.04062]
[1765504639296,0.002,92254.0,92253.0,0.06229951]
[1765504639979,0.002,92254.0,92253.0,0.001]
[1765504640744,0.06276277,92254.0,92253.0,0.001]
[1765504640984,0.03409376,92254.0,92253.0,0.001]
[1765504642027,0.04425112,92254.0,92253.0,0.001]
[1765504642229,0.33495112,92254.0,92253.0,0.001]
[1765504642435,0.04455055,92234.0,92233.0,0.0289524]
[1765504642796,0.01000089,92233.0,92232.0,0.03979462]
[1765504643266,0.01000089,92233.0,92232.0,0.22768521]
[1765504643428,0.01000089,92233.0,92232.0,0.25663761]
[1765504644224,0.01000089,92233.0,92232.0,0.22768521]
[1765504644415,0.01100089,92233.0,92232.0,0.22768521]
[1765504645409,0.01100089,92233.0,92232.0,0.22868521]
[1765504645579,0.001,92233.0,92232.0,0.01184222]
[1765504649564,0.01812,92233.0,92232.0,0.01184222]
[1765504653083,0.01812,92233.0,92232.0,0.001]
[1765504655026,0.23496212,92233.0,92232.0,0.001]
[1765504655670,0.27951267,92233.0,92232.0,0.001]
[1765504655843,0.29927288,92233.0,92232.0,0.001]
[1765504656045,0.30095288,92233.0,92232.0,0.001]
[1765504656248,0.29927288,92233.0,92232.0,0.001]
[1765504656430,0.30095288,92233.0,92232.0,0.001]
[1765504657220,0.25640233,92233.0,92232.0,0.001]
[1765504657425,0.26640322,92233.0,92232.0,0.001]
[1765504657872,0.00168,92220.0,92215.0,0.0185349]
[1765504658032,0.00168,92220.0,92189.0,0.09650254]
[1765504658033,0.21691973,92200.0,92198.0,0.03861112]
[1765504658229,0.01084504,92208.0,92180.0,0.05846852]
[1765504658230,0.21695268,92186.0,92180.0,0.05846852]
[1765504658437,0.28030323,92186.0,92180.0,0.0004]
[1765504658629,0.28198323,92186.0,92180.0,0.0004]
[1765504659280,0.57268323,92186.0,92180.0,0.0004]
[1765504659479,0.27241265,92161.0,92158.0,0.05806852]
[1765504659681,0.04455055,92158.0,92157.0,0.05806852]
[1765504659901,0.26157621,92155.0,92154.0,0.05806852]
[1765504660110,0.04455055,92154.0,92153.0,0.05806852]
[1765504660300,0.04455055,92152.0,92150.0,0.05846852]
[1765504660680,0.05296417,92151.0,92150.0,0.00078853]
[1765504661110,0.05464417,92151.0,92150.0,0.00078853]
[1765504661453,0.05296417,92151.0,92150.0,0.00078853]
[1765504661604,0.05296417,92151.0,92150.0,0.00278853]
[1765504661987,0.00168,92151.0,92150.0,0.00078853]
[1765504662357,0.00168,92151.0,92150.0,0.00278853]
[1765504665355,0.00329287,92151.0,92150.0,0.00278853]
[1765504665563,0.04952342,92151.0,92150.0,0.00278853]
[1765504666531,0.04952342,92151.0,92150.0,0.00078853]
[1765504666732,0.12283876,92151.0,92150.0,0.00078853]
[1765504666933,0.12383876,92151.0,92150.0,0.00178853]
[1765504669670,0.05052342,92151.0,92150.0,0.00178853]
[1765504669873,0.06764342,92151.0,92150.0,0.00178853]
[1765504670601,0.06764342,92151.0,92150.0,0.00078853]
[1765504671000,0.06764342,92151.0,92150.0,0.00178853]
[1765504671239,0.06664342,92151.0,92150.0,0.00280122]
[1765504671753,0.06764342,92151.0,92150.0,0.00280122]
[1765504671960,0.05052342,92151.0,92150.0,0.00280122]
[1765504672481,0.06596342,92151.0,92150.0,0.00280122]
[1765504672666,0.06764342,92151.0,92150.0,0.00280122]
[1765504674677,0.06596342,92151.0,92150.0,0.00280122]
[1765504675024,0.06764342,92151.0,92150.0,0.00280122]
[1765504677253,0.12893039,92151.0,92150.0,0.00280122]
[1765504677661,0.41963039,92151.0,92150.0,0.00280122]
[1765504677862,0.41963039,92151.0,92120.0,0.0116554]
[1765504677863,0.04455055,92131.0,92120.0,0.0116554]
[1765504678074,0.06373911,92131.0,92120.0,0.0116554]
[1765504678340,0.06541911,92131.0,92120.0,0.0116554]
[1765504678464,0.06541911,92131.0,92121.0,0.01085528]
[1765504678681,0.06541911,92131.0,92122.0,0.01085517]
[1765504679098,0.06541911,92131.0,92120.0,0.0116554]
[1765504679297,0.16096165,92131.0,92120.0,0.0008]
[1765504679499,0.06541911,92131.0,92121.0,0.21710404]
[1765504679709,0.06541911,92131.0,92130.0,0.0024]
[1765504680134,0.06541911,92131.0,92130.0,0.0004]
[1765504680337,0.06541911,92131.0,92130.0,0.0024]
[1765504680939,0.06541911,92131.0,92130.0,0.0004]
[1765504681227,0.06541911,92131.0,92130.0,0.0024]
[1765504682248,0.13925423,92131.0,92130.0,0.0024]
[1765504682682,0.06541911,92131.0,92130.0,0.0024]
[1765504683704,0.06373911,92131.0,92130.0,0.0024]
[1765504683875,0.04493911,92131.0,92130.0,0.01826]
[1765504684081,0.06205911,92131.0,92130.0,0.0024]
[1765504685591,0.06373911,92131.0,92130.0,0.0024]
[1765504687640,0.02086856,92131.0,92130.0,0.0024]
[1765504687866,0.06541911,92131.0,92130.0,0.0024]
[1765504688658,0.06373911,92131.0,92130.0,0.00297891]
[1765504689257,0.07386834,92131.0,92130.0,0.00297891]
[1765504694030,0.10725352,92131.0,92130.0,0.00297891]
[1765504694343,0.14606968,92131.0,92130.0,0.00297891]
[1765504696216,0.14606968,92131.0,92130.0,0.00097891]
[1765504696504,0.14606968,92131.0,92130.0,0.00197891]
[1765504697291,0.14606968,92131.0,92130.0,0.00097891]
[1765504698066,0.15106968,92131.0,92130.0,0.00097891]
[1765504698889,0.15606968,92131.0,92130.0,0.00197891]
[1765504699091,0.15606968,92131.0,92120.0,0.0008]
[1765504699092,0.26165631,92121.0,92120.0,0.0008]
[1765504699418,0.32351199,92121.0,92120.0,0.0008]
[1765504699642,0.32519199,92121.0,92120.0,0.0008]
[1765504699798,0.27346554,92121.0,92120.0,0.0008]
[1765504699978,0.05635978,92121.0,92120.0,0.0008]
[1765504700180,0.07347978,92121.0,92120.0,0.0008]
[1765504701097,0.07447978,92121.0,92120.0,0.0008]
[1765504701893,0.02992923,92121.0,92120.0,0.0008]
[1765504702094,0.07447978,92121.0,92120.0,0.0008]
[1765504702712,0.07279978,92121.0,92120.0,0.0008]
[1765504703131,0.07447978,92121.0,92120.0,0.0008]
[1765504703778,0.07279978,92121.0,92120.0,0.0008]
[1765504703943,0.01112923,92121.0,92120.0,0.04177]
[1765504704702,0.01112923,92121.0,92120.0,0.06377033]
[1765504704838,0.01012923,92121.0,92120.0,0.06377033]
[1765504705042,0.01112923,92121.0,92120.0,0.06677033]
[1765504705248,0.01112923,92121.0,92120.0,0.06877033]